bitfinex/quotes_SOLUSD_20250413
["timestamp","ask_amount","ask_price","bid_price","bid_amount"]
[1744568398791,39.84743305,131.38,131.33,42.92123305]
[1744568400192,39.84743305,131.38,131.33,16.9143]
[1744568400393,39.84743305,131.38,131.33,9.3]
[1744568400792,39.84743305,131.38,131.33,35.30693305]
[1744568401189,39.84743305,131.38,131.33,42.92113305]
[1744568402717,6.2289,131.38,131.34,26.00693305]
[1744568403712,39.84743305,131.38,131.33,42.92113305]
[1744568406098,6.2289,131.38,131.35,26.00693305]
[1744568407403,13.8404,131.38,131.34,26.00693305]
[1744568407932,6.2289,131.38,131.34,26.00693305]
[1744568409113,6.2289,131.38,131.34,16.22159993]
[1744568409620,6.2289,131.38,131.34,23.83519993]
[1744568411231,30.06209993,131.38,131.33,33.13569993]
[1744568411725,6.2289,131.38,131.34,16.22159993]
[1744568414242,6.2289,131.38,131.34,23.83519993]
[1744568414539,13.8404,131.38,131.34,23.83519993]
[1744568414939,6.2289,131.38,131.34,23.83519993]
[1744568416537,6.2289,131.38,131.35,16.22159993]
[1744568416711,1.6461,131.39,131.37,16.22159993]
[1744568416912,1.6461,131.39,131.36,16.22159993]
[1744568417420,26.0,131.4,131.37,16.22159993]
[1744568418526,26.0,131.4,131.37,23.83309993]
[1744568418829,26.0,131.4,131.36,23.83389993]
[1744568420339,1.5979,131.42,131.38,16.22159993]
[1744568421428,9.2071,131.42,131.38,16.22159993]
[1744568422026,25.42869993,131.42,131.37,16.22159993]
[1744568423046,1.5979,131.42,131.38,16.22159993]
[1744568423647,17.81949993,131.42,131.37,23.83319993]
[1744568423849,25.42879993,131.42,131.37,7.6116]
[1744568424153,25.42879993,131.42,131.37,23.83319993]
[1744568424954,25.42879993,131.42,131.36,26.26224886]
[1744568425250,9.2072,131.42,131.38,16.22159993]
[1744568425930,25.42879993,131.42,131.37,16.22159993]
[1744568426257,16.22159993,131.38,131.33,9.3]
[1744568426551,16.22159993,131.36,131.33,9.3]
[1744568426726,22.25819993,131.35,131.33,9.3]
[1744568427355,6.0366,131.35,131.33,9.3]
[1744568428447,6.0366,131.35,131.33,16.9143]
[1744568428647,6.0366,131.35,131.33,33.13589993]
[1744568429157,1.5952,131.37,131.34,16.22159993]
[1744568429344,1.5952,131.37,131.35,16.22159993]
[1744568429942,6.5,131.38,131.33,16.9143]
[1744568430161,6.5,131.38,131.35,16.22159993]
[1744568430533,6.5,131.38,131.35,23.83429993]
[1744568431043,6.5,131.38,131.34,23.83519993]
[1744568431431,30.33309993,131.38,131.33,33.13569993]
[1744568433248,6.5,131.38,131.35,16.22159993]
[1744568434039,6.5,131.38,131.34,16.22159993]
[1744568434244,30.33309993,131.38,131.33,33.13569993]
[1744568434748,6.5,131.38,131.35,16.22159993]
[1744568436734,6.5,131.38,131.35,23.83479993]
[1744568437356,6.5,131.38,131.33,9.3]
[1744568437357,22.72159993,131.38,131.33,9.3]
[1744568437548,22.72159993,131.38,131.33,25.52159993]
[1744568437741,6.5,131.38,131.34,16.22159993]
[1744568438338,6.5,131.38,131.34,23.83509993]
[1744568438943,6.5,131.38,131.35,16.22159993]
[1744568440057,6.5,131.38,131.35,23.83469993]
[1744568441644,6.5,131.38,131.34,7.6136]
[1744568441850,22.72159993,131.38,131.34,7.6136]
[1744568442047,30.33319993,131.38,131.34,7.6136]
[1744568442453,30.33319993,131.38,131.33,33.13569993]
[1744568443062,16.22159993,131.36,131.33,9.3]
[1744568443370,42.22159993,131.35,131.33,9.3]
[1744568443662,26.0,131.35,131.32,0.03]
[1744568444469,26.0,131.35,131.32,16.25159993]
[1744568444669,26.0,131.35,131.33,16.22159993]
[1744568444858,26.0,131.35,131.32,16.25159993]
[1744568445959,33.6132,131.35,131.32,0.03]
[1744568446173,26.0,131.35,131.32,0.03]
[1744568446373,26.0,131.35,131.32,16.25159993]
[1744568446970,26.0,131.35,131.32,23.86649993]
[1744568447571,1.5392,131.37,131.34,16.22159993]
[1744568447865,16.22159993,131.41,131.36,16.22159993]
[1744568447866,1.5392,131.41,131.36,16.22159993]
[1744568448055,1.5392,131.41,131.39,16.22159993]
[1744568448261,26.0,131.4,131.39,16.22159993]
[1744568448586,1.5392,131.41,131.39,16.22159993]
[1744568448746,0.063,131.44,131.4,16.22159993]
[1744568448954,0.063,131.44,131.43,16.22159993]
[1744568449148,0.063,131.44,131.43,23.83019993]
[1744568449347,0.063,131.44,131.4,28.07181043]
[1744568449348,0.063,131.44,131.4,9.28]
[1744568449544,0.063,131.44,131.41,16.22159993]
[1744568449748,0.063,131.44,131.4,25.50159993]
[1744568450662,1.5392,131.43,131.4,9.28]
[1744568450867,22.61549993,131.42,131.38,16.22159993]
[1744568451073,7.6097,131.41,131.37,16.22159993]
[1744568451257,23.83129993,131.41,131.37,16.22159993]
[1744568452255,16.22159993,131.39,131.36,9.28]
[1744568452950,26.0,131.38,131.36,9.28]
[1744568453153,16.22159993,131.4,131.36,9.28]
[1744568453360,7.6109,131.39,131.36,9.28]
[1744568454669,7.6109,131.39,131.32,0.03]
[1744568454670,26.0,131.37,131.32,0.03]
[1744568454867,1.5417,131.37,131.33,16.22159993]
[1744568455374,9.1543,131.37,131.33,16.22159993]
[1744568457551,9.1543,131.37,131.28,0.03]
[1744568457552,0.14216157,131.32,131.28,0.03]
[1744568457757,26.0,131.29,131.28,0.03]
[1744568458365,42.22159993,131.29,131.28,0.03]
[1744568459385,35.2977335,131.29,131.28,0.0001]
[1744568459562,9.60358471,131.28,131.27,0.03]
[1744568459875,25.82518464,131.28,131.27,0.0001]
[1744568460782,44.4748335,131.28,131.27,0.0001]
[1744568460952,26.0,131.25,131.24,0.03]
[1744568461148,52.44139272,131.25,131.24,0.03]
[1744568461376,0.42648471,131.24,131.22,0.03]
[1744568461582,45.09104158,131.23,131.22,0.0001]
[1744568461762,26.01490801,131.23,131.22,0.0001]
[1744568462083,26.01490801,131.24,131.22,0.0001]
[1744568462253,26.01490801,131.23,131.22,0.0001]
[1744568463179,33.63510801,131.23,131.22,0.0001]
[1744568465776,34.06159272,131.23,131.22,0.0001]
[1744568466475,51.65543357,131.21,131.2,0.03]
[1744568466682,26.01490801,131.17,131.16,0.03]
[1744568466882,26.42648471,131.19,131.16,0.03]
[1744568466883,26.01490801,131.18,131.16,0.03]
[1744568467060,34.04938471,131.19,131.16,0.03]
[1744568467386,26.01490801,131.18,131.16,0.03]
[1744568468161,26.01490801,131.17,131.16,0.03]
[1744568468663,26.44139272,131.17,131.16,0.03]
[1744568469270,34.06499272,131.17,131.16,0.03]
[1744568469484,26.0,131.13,131.08,0.03]
[1744568469666,26.0,131.14,131.08,0.03]
[1744568469667,26.0,131.14,131.1,26.01490801]
[1744568469862,26.0,131.14,131.11,26.01490801]
[1744568470213,26.0,131.14,131.1,26.01490801]
[1744568470888,52.01490801,131.14,131.09,26.01490801]
[1744568471184,26.0,131.14,131.1,26.01490801]
[1744568473168,52.01490801,131.14,131.09,33.64310801]
[1744568473883,52.01490801,131.14,131.09,33.64320801]
[1744568475991,82.9,131.18,131.12,26.01490801]
[1744568476286,26.0,131.15,131.12,26.01490801]
[1744568476877,18.79181043,131.19,131.12,26.01490801]
[1744568477084,26.01490801,131.17,131.13,7.626]
[1744568477286,26.01490801,131.17,131.12,33.64130801]
[1744568478086,26.01490801,131.18,131.13,26.01490801]
[1744568478571,26.01490801,131.18,131.12,33.64130801]
[1744568478894,6.5793,131.21,131.16,26.01490801]
[1744568479091,26.01490801,131.23,131.18,26.01490801]
[1744568479284,26.01490801,131.23,131.18,25.51490801]
[1744568479488,8.1733,131.24,131.18,25.51490801]
[1744568479489,26.0,131.2,131.18,26.01490801]
[1744568479876,26.0,131.21,131.18,26.01490801]
[1744568480077,26.01490801,131.22,131.17,26.01490801]
[1744568480385,26.0,131.2,131.17,26.01490801]
[1744568481173,26.0,131.2,131.17,33.63820801]
[1744568482798,26.0,131.2,131.18,33.63790801]
[1744568483179,26.0,131.2,131.18,23.88552862]
[1744568483598,26.0,131.2,131.18,16.26252862]
[1744568484381,42.26252862,131.21,131.15,7.6248]
[1744568484580,42.26252862,131.21,131.16,16.26252862]
[1744568484891,26.0,131.21,131.18,16.26252862]
[1744568486497,26.0,131.21,131.17,16.26252862]
[1744568486798,42.26252862,131.21,131.16,23.88652862]
[1744568487094,42.26252862,131.21,131.13,10.7914]
[1744568487095,16.26252862,131.19,131.13,9.28]
[1744568487274,16.26252862,131.2,131.15,16.26252862]
[1744568487975,16.26252862,131.2,131.16,7.6242]
[1744568488173,26.0,131.21,131.16,23.88672862]
[1744568488380,42.26252862,131.21,131.16,23.88672862]
[1744568488591,42.26252862,131.21,131.16,7.6242]
[1744568488901,42.26252862,131.21,131.16,23.88672862]
[1744568489605,26.0,131.21,131.18,16.26252862]
[1744568489900,16.26252862,131.19,131.14,7.6254]
[1744568490098,16.26252862,131.17,131.13,9.28]
[1744568490421,26.0,131.12,131.08,0.03]
[1744568490585,16.26252862,131.1,131.08,0.03]
[1744568490784,16.26252862,131.11,131.08,0.03]
[1744568491103,42.26252862,131.12,131.08,0.03]
[1744568491291,52.06376078,131.12,131.08,0.03]
[1744568491903,82.9,131.16,131.08,33.72256078]
[1744568491904,83.18432314,131.16,131.08,33.72256078]
[1744568492102,26.0,131.14,131.08,7.6588]
[1744568492310,26.0,131.14,131.1,26.06376078]
[1744568493106,32.66116078,131.17,131.12,26.06376078]
[1744568493891,6.5974,131.17,131.12,33.69006078]
[1744568494097,6.5974,131.17,131.13,26.06376078]
[1744568494915,6.5974,131.17,131.13,33.68946078]
[1744568497005,26.06376078,131.19,131.14,26.06376078]
[1744568497212,6.0733,131.2,131.15,26.06376078]
[1744568497511,6.0733,131.2,131.16,26.06376078]
[1744568498502,6.0733,131.2,131.15,26.06376078]
[1744568498815,6.0733,131.2,131.16,33.68766078]
[1744568499412,6.0733,131.2,131.15,7.6246]
[1744568499413,32.13706078,131.2,131.15,7.6246]
[1744568499594,32.13706078,131.2,131.14,42.96896078]
[1744568500025,32.13706078,131.2,131.15,26.06376078]
[1744568500317,6.0733,131.2,131.15,26.06376078]
[1744568500619,26.06376078,131.21,131.16,26.06376078]
[1744568500921,27.62286078,131.22,131.17,26.06376078]
[1744568501090,26.0,131.2,131.17,26.06376078]
[1744568502395,26.0,131.2,131.16,33.68776078]
[1744568503422,26.0,131.2,131.17,26.06376078]
[1744568504523,26.0,131.2,131.17,33.68706078]
[1744568505495,26.0,131.2,131.17,7.6233]
[1744568507625,26.0,131.2,131.15,7.6248]
[1744568507816,26.0,131.2,131.16,26.06376078]
[1744568510122,26.0,131.2,131.16,33.68776078]
[1744568510323,26.0,131.2,131.16,7.624]
[1744568510629,26.0,131.2,131.16,26.06376078]
[1744568511039,26.0,131.2,131.17,26.06376078]
[1744568511323,26.0,131.2,131.17,16.26511332]
[1744568514423,26.0,131.2,131.17,23.88861332]
[1744568515724,26.0,131.2,131.18,16.26511332]
[1744568517131,26.0,131.2,131.18,23.88801332]
[1744568518328,26.0,131.2,131.18,7.6229]
[1744568518541,42.26511332,131.2,131.15,7.6246]
[1744568518719,26.0,131.2,131.17,16.26511332]
[1744568518917,42.26511332,131.2,131.14,16.8652]
[1744568519124,16.26511332,131.19,131.14,9.24]
[1744568519512,26.0,131.2,131.17,16.26511332]
[1744568519712,26.0,131.19,131.16,16.26511332]
[1744568519911,1.5591,131.22,131.16,16.26511332]
[1744568520113,26.0,131.2,131.17,16.26511332]
[1744568520415,26.0,131.2,131.18,16.26511332]
[1744568521141,26.0,131.2,131.17,7.6235]
[1744568521343,26.0,131.2,131.17,16.26511332]
[1744568523441,26.0,131.2,131.17,23.88861332]
[1744568524839,26.0,131.2,131.17,16.26511332]
[1744568525136,26.0,131.2,131.17,23.88871332]
[1744568526120,26.0,131.2,131.18,16.26511332]
[1744568527515,6.3182,131.23,131.19,16.26511332]
[1744568527751,6.3182,131.23,131.2,16.26511332]
[1744568528238,6.3182,131.23,131.21,16.26511332]
[1744568528446,8.0157,131.26,131.22,16.26511332]
[1744568530245,16.26511332,131.25,131.16,19.0605]
[1744568530424,16.26511332,131.24,131.19,16.26511332]
[1744568530934,16.26511332,131.25,131.19,16.26511332]
[1744568531943,16.26511332,131.24,131.19,16.26511332]
[1744568532945,16.26511332,131.24,131.16,26.6847]
[1744568533246,16.26511332,131.24,131.19,16.26511332]
[1744568534220,26.0,131.23,131.2,16.26511332]
[1744568534533,26.0,131.22,131.2,16.26511332]
[1744568535253,26.0,131.22,131.19,16.26511332]
[1744568537846,42.26511332,131.23,131.17,16.26511332]
[1744568538737,26.0,131.23,131.19,16.26511332]
[1744568538941,26.0,131.22,131.2,16.26511332]
[1744568539126,24.28081332,131.26,131.21,16.26511332]
[1744568539331,0.063,131.26,131.24,16.26511332]
[1744568539540,0.063,131.26,131.25,16.26511332]
[1744568539742,0.063,131.26,131.25,23.88411332]
[1744568543260,0.063,131.26,131.25,16.26511332]
[1744568543761,0.063,131.26,131.22,16.26511332]
[1744568543762,6.218,131.26,131.22,16.26511332]
[1744568543930,7.7755,131.26,131.22,16.26511332]
[1744568544131,26.0,131.22,131.21,9.22]
[1744568544334,26.0,131.22,131.18,23.88781332]
[1744568544547,26.0,131.22,131.19,16.26511332]
[1744568545142,26.0,131.23,131.2,16.26511332]
[1744568545543,26.0,131.23,131.19,23.88701332]
[1744568545957,26.0,131.23,131.2,16.26511332]
[1744568546363,26.0,131.23,131.19,23.88701332]
[1744568546660,26.0,131.23,131.19,16.26511332]
[1744568546962,26.0,131.23,131.21,16.26511332]
[1744568547638,26.0,131.23,131.21,23.88631332]
[1744568547834,24.04061332,131.26,131.21,23.88631332]
[1744568548561,24.04061332,131.26,131.17,37.85101043]
[1744568548860,16.26511332,131.24,131.19,16.26511332]
[1744568549153,16.26511332,131.25,131.2,16.26511332]
[1744568550271,16.26511332,131.25,131.18,7.6231]
[1744568550446,16.26511332,131.24,131.19,16.26511332]
[1744568550642,26.0,131.21,131.19,16.26511332]
[1744568552164,26.0,131.21,131.19,23.88751332]
[1744568552362,26.0,131.23,131.2,16.26511332]
[1744568552661,7.7755,131.26,131.22,16.26511332]
[1744568553048,16.26511332,131.25,131.2,16.26511332]
[1744568553364,16.26511332,131.24,131.19,16.26511332]
[1744568554063,26.0,131.23,131.2,16.26511332]
[1744568554262,24.04061332,131.26,131.21,16.26511332]
[1744568554468,16.26511332,131.25,131.2,16.26511332]
[1744568555055,24.04061332,131.26,131.21,16.26511332]
[1744568555559,7.7755,131.26,131.22,16.26511332]
[1744568555761,6.218,131.26,131.23,16.26511332]
[1744568555942,0.063,131.26,131.24,16.26511332]
[1744568556142,0.063,131.26,131.21,7.6212]
[1744568556341,0.063,131.26,131.22,16.26511332]
[1744568556536,0.063,131.26,131.23,16.26511332]
[1744568557643,0.063,131.26,131.23,23.88521332]
[1744568557838,0.063,131.26,131.25,16.26511332]
[1744568558564,0.063,131.26,131.24,16.26511332]
[1744568560285,0.063,131.26,131.23,16.26511332]
[1744568561566,0.063,131.26,131.24,16.26511332]
[1744568561768,0.063,131.26,131.25,16.26511332]
[1744568562467,0.063,131.26,131.25,35.05692375]
[1744568563851,0.063,131.26,131.25,42.67592375]
[1744568564053,0.063,131.26,131.25,23.88411332]
[1744568567584,0.063,131.26,131.25,16.26511332]
[1744568567896,0.063,131.26,131.24,23.88461332]
[1744568568177,0.063,131.26,131.23,23.88501332]
[1744568568750,0.063,131.26,131.24,16.26511332]
[1744568568948,0.063,131.26,131.25,16.26511332]
[1744568571682,0.063,131.26,131.25,23.88411332]
[1744568574050,0.063,131.26,131.25,42.67592375]
[1744568574251,0.063,131.26,131.25,42.96024689]
[1744568577380,0.063,131.26,131.25,42.67592375]
[1744568579389,0.063,131.26,131.25,42.96024689]
[1744568580381,0.063,131.26,131.25,23.88411332]
[1744568582586,0.063,131.26,131.25,42.96024689]
[1744568582882,0.063,131.29,131.28,26.0]
[1744568583180,0.0001,131.31,131.3,35.34124689]
[1744568583382,0.0001,131.31,131.3,44.25692375]
[1744568584888,0.0001,131.31,131.3,51.87302375]
[1744568585384,0.063,131.35,131.3,71.19764689]
[1744568585569,0.063,131.35,131.33,35.05692375]
[1744568586084,0.063,131.35,131.33,16.26511332]
[1744568586987,0.063,131.35,131.33,23.87951332]
[1744568589491,0.063,131.35,131.32,7.6149]
[1744568589682,0.063,131.35,131.33,16.26511332]
[1744568590495,0.063,131.35,131.33,23.87951332]
[1744568592799,0.063,131.35,131.32,16.26511332]
[1744568592970,0.063,131.35,131.33,16.26511332]
[1744568593676,0.063,131.35,131.32,18.64964886]
[1744568593677,0.063,131.35,131.32,16.26511332]
[1744568594496,0.063,131.35,131.32,23.87961332]
[1744568595398,7.7415,131.35,131.31,23.88041332]
[1744568595692,24.00661332,131.35,131.3,33.08091332]
[1744568596097,0.063,131.35,131.33,16.26511332]
[1744568596473,0.063,131.35,131.33,23.87951332]
[1744568596669,0.063,131.35,131.33,42.95564689]
[1744568597482,0.063,131.35,131.34,16.40727489]
[1744568598199,0.063,131.35,131.33,26.26404886]
[1744568598405,0.063,131.35,131.34,16.26511332]
[1744568598591,0.063,131.35,131.34,23.87891332]
[1744568598799,0.063,131.35,131.34,16.26511332]
[1744568598979,0.063,131.35,131.34,23.87891332]
[1744568603282,0.063,131.35,131.33,23.87931332]
[1744568603578,0.063,131.35,131.31,23.88041332]
[1744568603779,16.32811332,131.35,131.3,33.08101332]
[1744568603985,16.32811332,131.35,131.3,25.46511332]
[1744568604311,16.32811332,131.35,131.3,33.08111332]
[1744568604606,16.32811332,131.35,131.3,16.816]
[1744568604808,0.063,131.35,131.31,16.26511332]
[1744568605784,0.063,131.35,131.31,23.88031332]
[1744568606493,16.32811332,131.35,131.31,7.6152]
[1744568608408,16.32811332,131.35,131.3,33.08101332]
[1744568608409,23.94131332,131.35,131.3,33.08101332]
[1744568609523,0.063,131.35,131.31,16.26511332]
[1744568610210,16.32811332,131.35,131.3,33.08101332]
[1744568610610,23.94141332,131.35,131.3,33.08101332]
[1744568611624,16.32811332,131.35,131.3,33.08101332]
[1744568612616,23.94131332,131.35,131.3,33.08101332]
[1744568612910,7.6762,131.35,131.31,16.26511332]
[1744568613313,23.94131332,131.35,131.3,33.08101332]
[1744568614914,0.063,131.35,131.31,16.26511332]
[1744568615416,7.6762,131.35,131.3,33.08101332]
[1744568615597,16.32811332,131.35,131.3,33.08101332]
[1744568615797,23.94141332,131.35,131.3,33.08101332]
[1744568616117,23.94141332,131.35,131.3,9.2]
[1744568616295,1.6318,131.32,131.3,9.2]
[1744568616612,43.89691332,131.32,131.28,7.6469]
[1744568616811,6.0531,131.31,131.28,7.6469]
[1744568618010,6.0531,131.31,131.28,0.03]
[1744568618813,29.93371332,131.31,131.28,0.03]
[1744568619790,22.31821332,131.31,131.28,0.03]
[1744568619991,6.0531,131.31,131.28,23.91201332]
[1744568620203,6.0531,131.31,131.28,0.03]
[1744568620511,22.31821332,131.31,131.28,0.03]
[1744568620709,29.93391332,131.31,131.28,0.03]
[1744568621815,42.26511332,131.29,131.28,0.03]
[1744568622011,23.88361332,131.26,131.24,0.03]
[1744568622315,16.26511332,131.25,131.24,0.03]
[1744568622841,7.90162314,131.28,131.24,0.03]
[1744568623108,26.0,131.26,131.24,16.29511332]
[1744568623429,16.26511332,131.28,131.24,0.03]
[1744568624117,31.56681332,131.29,131.24,16.29511332]
[1744568624323,16.26511332,131.28,131.24,0.03]
[1744568624741,16.26511332,131.28,131.24,7.6494]
[1744568624938,31.56681332,131.29,131.24,23.91451332]
[1744568625311,31.56681332,131.29,131.24,7.6494]
[1744568625312,16.26511332,131.28,131.24,7.6494]
[1744568626606,15.3017,131.29,131.24,7.6494]
[1744568626805,16.26511332,131.28,131.24,7.6494]
[1744568627623,23.88241332,131.28,131.24,7.6494]
[1744568627818,16.26511332,131.28,131.24,7.6494]
[1744568630032,7.6849,131.29,131.26,16.26511332]
[1744568630214,31.76781332,131.32,131.27,16.26511332]
[1744568630915,16.26511332,131.31,131.24,26.6984]
[1744568631119,16.26511332,131.3,131.25,16.26511332]
[1744568632032,31.76781332,131.32,131.27,23.88291332]
[1744568632231,16.26511332,131.31,131.27,7.6178]
[1744568633032,16.26511332,131.31,131.26,23.88331332]
[1744568633226,16.26511332,131.29,131.24,16.29511332]
[1744568633823,26.0,131.29,131.25,16.26511332]
[1744568635134,26.0,131.29,131.25,23.88391332]
[1744568635353,16.26511332,131.31,131.26,16.26511332]
[1744568636638,16.26511332,131.31,131.27,7.6178]
[1744568638020,24.15281332,131.32,131.27,23.88291332]
[1744568638226,31.76781332,131.32,131.27,23.88291332]
[1744568641145,16.26511332,131.31,131.26,23.88331332]
[1744568641435,16.26511332,131.31,131.24,0.03]
[1744568641436,16.26511332,131.27,131.24,0.03]
[1744568643044,26.0,131.27,131.24,0.03]
[1744568645246,26.0,131.29,131.24,16.29511332]
[1744568645445,42.26511332,131.29,131.24,16.29511332]
[1744568645642,16.26511332,131.25,131.24,0.03]
[1744568645828,42.26511332,131.25,131.24,0.03]
[1744568646153,42.69159803,131.25,131.24,0.03]
[1744568646651,50.31059803,131.25,131.24,0.03]
[1744568649738,49.88411332,131.25,131.24,0.03]
[1744568650136,33.619,131.25,131.24,0.03]
[1744568650535,7.6186,131.26,131.24,0.03]
[1744568650847,42.26511332,131.25,131.24,0.03]
[1744568651752,0.14216157,131.29,131.24,0.03]
[1744568651931,0.14216157,131.3,131.24,0.03]
[1744568652131,106.78041332,131.32,131.27,16.26511332]
[1744568652331,7.6145,131.33,131.28,16.26511332]
[1744568652548,16.26511332,131.32,131.27,16.26511332]
[1744568653857,23.87961332,131.33,131.27,16.26511332]
[1744568654157,16.26511332,131.31,131.26,16.26511332]
[1744568654359,7.6145,131.33,131.27,16.26511332]
[1744568654360,16.26511332,131.32,131.27,16.26511332]
[1744568655160,16.26511332,131.33,131.28,16.26511332]
[1744568655462,16.26511332,131.32,131.25,26.6665]
[1744568655660,16.26511332,131.32,131.27,23.88281332]
[1744568656047,23.88011332,131.32,131.27,23.88281332]
[1744568656241,16.26511332,131.32,131.27,23.88281332]
[1744568656446,23.87961332,131.33,131.28,16.26511332]
[1744568657557,16.26511332,131.31,131.25,7.619]
[1744568657763,16.26511332,131.31,131.26,16.26511332]
[1744568658548,26.0,131.3,131.26,16.26511332]
[1744568658749,26.0,131.3,131.26,23.88341332]
[1744568659048,0.063,131.34,131.29,16.26511332]
[1744568659257,0.063,131.34,131.3,16.26511332]
[1744568660360,0.063,131.34,131.3,23.88091332]
[1744568661564,0.063,131.34,131.32,16.26511332]
[1744568661873,0.063,131.34,131.33,16.26511332]
[1744568662547,0.063,131.34,131.32,16.26511332]
[1744568662855,0.063,131.34,131.3,7.6158]
[1744568663247,16.26511332,131.32,131.28,7.6173]
[1744568663463,16.26511332,131.31,131.24,27.79964886]
[1744568663642,16.26511332,131.3,131.25,16.26511332]
[1744568664551,16.26511332,131.3,131.25,23.88371332]
[1744568665669,23.88121332,131.3,131.25,23.88371332]
[1744568666046,23.88121332,131.3,131.25,16.26511332]
[1744568666244,23.88121332,131.3,131.24,33.03441332]
[1744568667063,16.26511332,131.27,131.24,9.15]
[1744568667266,7.75826157,131.3,131.24,9.15]
[1744568667267,16.26511332,131.26,131.24,9.15]
[1744568667752,16.26511332,131.25,131.24,0.03]
[1744568668780,35.34124689,131.25,131.24,0.03]
[1744568668967,16.69159803,131.25,131.24,0.03]
[1744568669647,24.31059803,131.25,131.24,0.03]
[1744568670974,42.96024689,131.25,131.24,0.03]
[1744568671458,8.04548471,131.25,131.24,0.03]
[1744568671654,42.96024689,131.25,131.24,0.03]
[1744568671970,26.42648471,131.21,131.2,0.03]
[1744568672169,61.34124689,131.21,131.2,0.03]
[1744568672384,61.34124689,131.21,131.2,0.0001]
[1744568672385,83.91976021,131.21,131.2,0.0001]
[1744568672671,0.28432314,131.2,131.18,0.03]
[1744568672847,34.91476218,131.19,131.18,0.03]
[1744568673473,26.0,131.15,131.12,0.03]
[1744568673772,23.89111332,131.13,131.12,0.03]
[1744568675261,7.626,131.13,131.12,0.03]
[1744568675460,33.68579467,131.13,131.12,0.03]
[1744568675771,0.28432314,131.16,131.12,0.03]
[1744568675974,26.0,131.14,131.12,0.03]
[1744568676972,26.0,131.13,131.12,0.03]
[1744568677149,0.14216157,131.17,131.12,0.03]
[1744568677350,108.95979467,131.18,131.12,26.08979467]
[1744568677549,26.0,131.15,131.12,26.08979467]
[1744568677753,33.68239467,131.19,131.14,26.05979467]
[1744568677974,7.6226,131.19,131.15,26.05979467]
[1744568678361,26.05979467,131.2,131.12,0.03]
[1744568678673,26.05979467,131.2,131.15,26.05979467]
[1744568678981,33.68169467,131.2,131.15,33.68449467]
[1744568679477,13.9349,131.21,131.15,33.68449467]
[1744568679668,26.05979467,131.22,131.17,26.05979467]
[1744568679972,26.0,131.2,131.18,26.05979467]
[1744568680169,26.0,131.2,131.17,26.05979467]
[1744568681283,26.0,131.2,131.16,7.6239]
[1744568681472,26.0,131.2,131.17,26.05979467]
[1744568682278,26.0,131.2,131.18,26.05979467]
[1744568682654,7.6202,131.23,131.19,26.05979467]
[1744568683066,7.6202,131.23,131.17,7.6236]
[1744568683268,33.67999467,131.23,131.18,26.05979467]
[1744568683558,33.67999467,131.23,131.16,26.05979467]
[1744568683559,26.05979467,131.21,131.16,26.05979467]
[1744568683769,26.05979467,131.22,131.17,26.05979467]
[1744568683965,33.67999467,131.23,131.18,26.05979467]
[1744568684171,26.05979467,131.23,131.18,26.05979467]
[1744568684350,7.6207,131.22,131.17,26.05979467]
[1744568684554,26.05979467,131.21,131.16,26.05979467]
[1744568684766,33.68049467,131.22,131.17,26.05979467]
[1744568685378,33.68049467,131.22,131.17,33.68339467]
[1744568685578,26.05979467,131.2,131.14,7.6254]
[1744568685877,26.0,131.19,131.15,26.05979467]
[1744568686281,52.05979467,131.19,131.14,7.6254]
[1744568686474,52.05979467,131.19,131.14,26.05979467]
[1744568686861,26.0,131.19,131.15,26.05979467]
[1744568687779,33.6225,131.19,131.14,7.6251]
[1744568687979,33.6225,131.19,131.15,26.05979467]
[1744568688481,26.0,131.19,131.16,26.05979467]
[1744568689978,33.6227,131.19,131.13,7.626]
[1744568690178,59.68249467,131.19,131.14,26.05979467]
[1744568690862,26.05979467,131.18,131.13,33.68579467]
[1744568691379,26.05979467,131.18,131.12,0.03]
[1744568691581,7.6242,131.16,131.12,0.03]